fUSD/lending_fUSD_20260130
["ID","MTS","AMOUNT","RATE_DAILY","PERIOD"]
[404074176,1769787318337,500.0,0.00012795,2]
[404074177,1769787318379,500.0,0.00012795,2]
[404074178,1769787318431,500.0,0.00012795,2]
[404074179,1769787318473,500.0,0.00012795,2]
[404074180,1769787318515,500.0,0.00012795,2]
[404074181,1769787318577,500.0,0.00012795,2]
[404074182,1769787318622,500.0,0.00012795,2]
[404074183,1769787318676,500.0,0.00012795,2]
[404074184,1769787318718,500.0,0.00012795,2]
[404074185,1769787318762,500.0,0.00012795,2]
[404074186,1769787318809,500.0,0.00012795,2]
[404074187,1769787318855,500.0,0.00012795,2]
[404074188,1769787318905,500.0,0.00012795,2]
[404074189,1769787318961,500.0,0.00012795,2]
[404074190,1769787319013,362.98413886,0.00012795,2]
[404074191,1769787319043,137.01586114,0.00012795,2]
[404074192,1769787319095,500.0,0.00012795,2]
[404074193,1769787319150,500.0,0.00012795,2]
[404074194,1769787319194,500.0,0.00012795,2]
[404074195,1769787319256,500.0,0.00012795,2]
[404074196,1769787319379,500.0,0.00012795,2]
[404074197,1769787319429,500.0,0.00012795,2]
[404074198,1769787319503,307.23813398,0.00012795,2]
[404074199,1769787319890,500.0,0.00012795,2]
[404074200,1769787337949,500.0,0.00012795,2]
[404074201,1769787338574,500.0,0.00012795,2]
[404074202,1769787339199,-1105.01329862,0.00012796,2]
[404074203,1769787339278,-1512.74,0.00012796,2]
[404074204,1769787339382,-1512.74,0.00012796,2]
[404074205,1769787339509,-511.109873,0.00012796,2]
[404074206,1769787339627,-253.31536522,0.00012796,2]
[404074207,1769787342626,500.0,0.00012795,2]
[404074208,1769787345281,500.0,0.00012795,2]
[404074209,1769787345542,500.0,0.00012795,2]
[404074210,1769787345913,500.0,0.00012795,2]
[404074211,1769787346791,500.0,0.00012795,2]
[404074212,1769787346847,500.0,0.00012795,2]
[404074213,1769787346896,500.0,0.00012795,2]
[404074214,1769787346948,500.0,0.00012795,2]
[404074215,1769787347000,500.0,0.00012795,2]
[404074216,1769787347049,500.0,0.00012795,2]
[404074217,1769787347107,55.75600488,0.00012795,2]
[404074218,1769787347139,444.24399512,0.00012795,2]
[404074219,1769787347189,500.0,0.00012795,2]
[404074220,1769787347234,500.0,0.00012795,2]
[404074221,1769787347279,500.0,0.00012795,2]
[404074222,1769787347328,500.0,0.00012795,2]
[404074223,1769787347373,500.0,0.00012795,2]
[404074224,1769787347420,500.0,0.00012795,2]
[404074225,1769787347470,500.0,0.00012795,2]
[404074226,1769787347513,500.0,0.00012795,2]
[404074227,1769787355070,4928.57455062,0.00012696,2]
[404074228,1769787362237,300.0,0.00012795,2]
[404074229,1769787362282,300.0,0.00012795,2]
[404074230,1769787363589,150.0,0.00012795,2]
[404074231,1769787424322,300.0,0.00012795,2]
[404074232,1769787426291,151.0,0.00012796,2]
[404074233,1769787427416,151.0,0.00012796,2]
[404074234,1769787428043,151.0,0.00012796,2]
[404074235,1769787428361,200.0,0.00012796,2]
[404074236,1769787428689,151.0,0.00012796,2]
[404074237,1769787429513,151.0,0.00012796,2]
[404074238,1769787430110,151.0,0.00012796,2]
[404074239,1769787430301,-31.07676316,0.00012796,2]
[404074240,1769787430339,-3302.4343,0.00012796,2]
[404074241,1769787430393,-360.3656,0.00012796,2]
[404074242,1769787431123,151.0,0.00012796,2]
[404074243,1769787431991,151.0,0.00012796,2]
[404074244,1769787432078,151.0,0.00012796,2]
[404074245,1769787432360,151.0,0.00012796,2]
[404074246,1769787433796,-2903.13246379,0.00012796,2]
[404074247,1769787433836,151.0,0.00012796,2]
[404074248,1769787433922,-9849.01,0.00012796,2]
[404074249,1769787433949,-10000.01,0.00012796,2]
[404074250,1769787433997,151.0,0.00012796,2]
[404074251,1769787434107,500.0,0.00012796,2]
[404074252,1769787434172,151.0,0.00012796,2]
[404074253,1769787434274,151.0,0.00012796,2]
[404074254,1769787436007,-500.0,0.00012796,2]
[404074255,1769787436041,-151.0,0.00012796,2]
[404074256,1769787436073,-151.0,0.00012796,2]
[404074257,1769787436105,-500.0,0.00012796,2]
[404074258,1769787436137,-151.0,0.00012796,2]
[404074259,1769787436206,-151.0,0.00012796,2]
[404074260,1769787436237,-500.0,0.00012796,2]
[404074261,1769787436273,-151.0,0.00012796,2]
[404074262,1769787436304,-151.0,0.00012796,2]
[404074263,1769787436336,-500.0,0.00012796,2]
[404074264,1769787436366,-151.0,0.00012796,2]
[404074265,1769787436396,-500.0,0.00012796,2]
[404074266,1769787436644,-151.0,0.00012796,2]
[404074267,1769787436676,-500.0,0.00012796,2]
[404074268,1769787437095,-1282.01,0.00012796,2]
[404074269,1769787437155,-151.0,0.00012796,2]
[404074270,1769787437216,-151.0,0.00012796,2]
[404074271,1769787437225,-349.0,0.00012796,2]
[404074272,1769787437252,-8698.01,0.00012796,2]
[404074273,1769787437324,-500.0,0.00012796,2]
[404074274,1769787437462,-9500.01,0.00012796,2]
[404074275,1769787437521,-151.0,0.00012796,2]
[404074276,1769787437542,-9698.01,0.00012796,2]
[404074277,1769787437593,-151.0,0.00012796,2]
[404074278,1769787437603,-9849.01,0.00012796,2]
[404074279,1769787437623,-500.0,0.00012796,2]
[404074280,1769787437643,-9000.01,0.00012796,2]
[404074281,1769787437705,-500.0,0.00012796,2]
[404074282,1769787437715,-9500.01,0.00012796,2]
[404074283,1769787439330,-151.0,0.00012796,2]
[404074284,1769787439361,-500.0,0.00012796,2]
[404074285,1769787439394,-151.0,0.00012796,2]
[404074286,1769787439426,-151.0,0.00012796,2]
[404074287,1769787439460,-151.0,0.00012796,2]
[404074288,1769787439667,-7792.01,0.00012796,2]
[404074289,1769787439739,-151.0,0.00012796,2]
[404074290,1769787439775,-9849.01,0.00012796,2]
[404074291,1769787439795,-151.0,0.00012796,2]
[404074292,1769787439818,-9698.01,0.00012796,2]
[404074293,1769787439929,-10000.01,0.00012796,2]
[404074294,1769787442884,-500.0,0.00012796,2]
[404074295,1769787443141,500.0,0.00012796,2]
[404074296,1769787447660,200.0,0.00012796,2]
[404074297,1769787452551,8300.01,0.00012696,2]
[404074298,1769787452578,4995.89530557,0.00012696,2]
[404074299,1769787456399,166.66,0.0001211,2]
[404074300,1769787456669,166.66,0.00012365,2]
[404074301,1769787456928,500.0,0.00012796,2]
[404074302,1769787457202,166.66,0.0001262,2]
[404074303,1769787458912,-5004.13469443,0.00012796,2]
[404074304,1769787458987,-10000.01,0.00012796,2]
[404074305,1769787459150,-10000.01,0.00012796,2]
[404074306,1769787459268,-10000.01,0.00012796,2]
[404074307,1769787459420,-10000.01,0.00012796,2]
[404074308,1769787459532,-10000.01,0.00012796,2]
[404074309,1769787459635,-10000.01,0.00012796,2]
[404074310,1769787459788,-10000.01,0.00012796,2]
[404074311,1769787461252,-10000.01,0.00012796,2]
[404074312,1769787461438,-10000.01,0.00012796,2]
[404074313,1769787461637,-10000.01,0.00012796,2]
[404074314,1769787475761,500.0,0.00012796,2]
[404074315,1769787476420,500.0,0.00012796,2]
[404074316,1769787477111,500.0,0.00012796,2]
[404074317,1769787477889,500.0,0.00012796,2]
[404074318,1769787478996,500.0,0.00012796,2]
[404074319,1769787479649,500.0,0.00012796,2]
[404074320,1769787480821,500.0,0.00012796,2]
[404074321,1769787481549,500.0,0.00012796,2]
[404074322,1769787482197,500.0,0.00012796,2]
[404074323,1769787483884,500.0,0.00012796,2]
[404074324,1769787484247,500.0,0.00012796,2]
[404074325,1769787486612,-4500.01,0.00012796,2]
[404074326,1769787486872,-10000.01,0.00012796,2]
[404074327,1769787486998,-10000.01,0.00012796,2]
[404074328,1769787487128,-10000.01,0.00012796,2]
[404074329,1769787487246,-10000.01,0.00012796,2]
[404074330,1769787487377,-10000.01,0.00012796,2]
[404074331,1769787487495,-10000.01,0.00012796,2]
[404074332,1769787487631,-10000.01,0.00012796,2]
[404074333,1769787487768,-10000.01,0.00012796,2]
[404074334,1769787487959,-10000.01,0.00012796,2]
[404074335,1769787492245,-10000.01,0.00012796,2]
[404074338,1769787530790,150.0,0.00012711,2]
[404074339,1769787531630,1267.00232403,0.00012696,2]
[404074340,1769787543449,150.0,0.00012795,2]
[404074341,1769787556287,346.6804,0.00012696,2]
[404074342,1769787572843,3726.47181309,0.00012786,2]
[404074343,1769787586216,150.0,0.00014715,5]
[404074344,1769787602504,1200.0,0.00012795,2]
[404074345,1769787602651,300.0,0.00012795,2]
[404074346,1769787616792,536.75342404,0.00012786,2]
[404074347,1769787636193,2323.10203884,0.00012696,2]
[404074348,1769787636220,2302.01065209,0.00012696,2]
[404074349,1769787653986,1852.42,0.00012661,2]
[404074350,1769787657038,152.71796878,0.00012696,2]
[404074351,1769787662800,300.0,0.00012795,2]
[404074352,1769787682352,5392.86137913,0.00012696,2]
[404074353,1769787682389,10000.01,0.00012696,2]
[404074354,1769787682420,6074.6867086,0.00012696,2]
[404074355,1769787692764,5300.745,0.0001254,2]
[404074356,1769787692809,427.623,0.0001254,2]
[404074357,1769787723773,150.0,0.00012795,2]
[404074358,1769787725085,151.0,0.00012796,2]
[404074359,1769787725752,151.0,0.00012796,2]
[404074360,1769787726406,151.0,0.00012796,2]
[404074361,1769787727049,151.0,0.00012796,2]
[404074362,1769787727724,151.0,0.00012796,2]
[404074363,1769787728361,279.10687383,0.00012796,2]
[404074364,1769787730874,500.0,0.00012796,2]
[404074365,1769787731565,500.0,0.00012796,2]
[404074366,1769787732098,500.0,0.00012796,2]
[404074367,1769787732776,500.0,0.00012796,2]
[404074368,1769787732940,-5012.85841757,0.00012796,2]
[404074369,1769787733001,-10000.01,0.00012796,2]
[404074370,1769787733086,-10000.01,0.00012796,2]
[404074371,1769787733249,-10000.01,0.00012796,2]
[404074372,1769787733368,-10000.01,0.00012796,2]
[404074373,1769787733411,500.0,0.00012796,2]
[404074374,1769787734037,500.0,0.00012796,2]
[404074375,1769787737855,-500.0,0.00012796,2]
[404074376,1769787737889,-500.0,0.00012796,2]
[404074377,1769787737926,-500.0,0.00012796,2]
[404074378,1769787737960,-500.0,0.00012796,2]
[404074379,1769787737999,-500.0,0.00012796,2]
[404074380,1769787738178,-4000.01,0.00012796,2]
[404074381,1769787738234,-10000.01,0.00012796,2]
[404074382,1769787738287,-500.0,0.00012796,2]
[404074383,1769787738297,-9500.01,0.00012796,2]
[404074384,1769787738512,-10000.01,0.00012796,2]
[404074385,1769787744015,-500.0,0.00012696,2]
[404074386,1769787744047,-500.0,0.00012796,2]
[404074387,1769787744081,-500.0,0.00012796,2]
[404074388,1769787744115,-500.0,0.00012796,2]
[404074389,1769787744149,-500.0,0.00012796,2]
[404074390,1769787744180,-200.0,0.00012796,2]
[404074391,1769787744213,-500.0,0.00012796,2]
[404074392,1769787744374,-3600.01,0.00012796,2]
[404074393,1769787744395,-10000.01,0.00012796,2]
[404074394,1769787744430,-10000.01,0.00012796,2]
[404074395,1769787744594,-10000.01,0.00012796,2]
[404074396,1769787744762,-10000.01,0.00012796,2]
[404074397,1769787747465,-500.0,0.00012796,2]
[404074398,1769787747527,-9000.01,0.00012796,2]
[404074399,1769787788059,19434.225636,7.945e-05,2]
[404074400,1769787816640,150.0,0.00021,30]
[404074402,1769787930511,150.72769008,0.00014715,5]
[404074403,1769787952492,-263.40695329,0.00012359,2]
[404074404,1769787955098,-161.0,0.00012298,2]
[404074405,1769787955123,-138.32895054,0.00012359,2]
[404074406,1769787958074,-1057.77792762,0.00012359,2]
[404074407,1769787960194,-990.72666353,0.00012359,2]
[404074408,1769787963404,-280.94414854,0.00012359,2]
[404074409,1769787965433,-445.04373616,0.00012359,2]
[404074410,1769787983677,-413.94416303,0.00012322,2]
[404074411,1769787990630,-275.59856326,0.00012322,2]
[404074412,1769787993343,-46.68493787,0.00012322,2]
[404074413,1769787993366,-140.99304399,0.00012359,2]
[404074414,1769788012501,-283.49998173,0.00011233,2]
[404074415,1769788014126,-202.00140077,0.00011233,2]
[404074416,1769788018983,-195.0,0.00011233,2]
[404074417,1769788022575,-270.85209738,0.00011233,2]
[404074418,1769788024015,200.0,0.000126,4]
[404074419,1769788025264,-170.2098089,0.00011233,2]
[404074421,1769788026156,400.0,0.000127,4]
[404074422,1769788026905,-165.157753,0.00011176,2]
[404074423,1769788026930,-121.62678908,0.00011233,2]
[404074424,1769788028257,700.0,0.000128,4]
[404074425,1769788030230,-285.15355164,0.00011233,2]
[404074426,1769788030350,900.0,0.000129,4]
[404074439,1769788232135,-820.15581872,0.00011132,2]
[404074440,1769788232145,-725.9878847,0.00011219,2]
[404074441,1769788232157,-242.0,0.00011219,2]
[404074442,1769788232167,-1200.0,0.00011232,2]
[404074443,1769788232177,-200.0,0.00011232,2]
[404074444,1769788232188,-300.0,0.00011232,2]
[404074445,1769788232198,-300.0,0.00011232,2]
[404074447,1769788232208,-1156.40138892,0.00011232,2]
[404074449,1769788232217,-9617.7563705,0.00011233,2]
[404074451,1769788232230,-820.1558187,0.00011814,2]
[404074453,1769788232240,-420.0,0.0001234,2]
[404074455,1769788232250,-232.0,0.0001234,2]
[404074457,1769788232260,-267.72209065,0.00012341,2]
[404074459,1769788232270,-1200.0,0.00012354,2]
[404074461,1769788232280,-300.0,0.00012355,2]
[404074462,1769788232290,-1680.0,0.00012355,2]
[404074463,1769788232300,-191.06190628,0.00012356,2]
[404074464,1769788232312,-300.0,0.00012356,2]
[404074465,1769788232323,-308.93809372,0.00012356,2]
[404074466,1769788232333,-300.0,0.00012356,2]
[404074467,1769788232342,-250.0,0.00012422,2]
[404074468,1769788232352,-250.0,0.00012477,2]
[404074469,1769788232362,-820.1558187,0.00012496,2]
[404074470,1769788232375,-150.0,0.00012595,2]
[404074471,1769788232384,-434.17881837,0.00012595,2]
[404074472,1769788232394,-4119.6099,0.00012596,2]
[404074473,1769788232403,-24769.513,0.00012596,2]
[404074474,1769788232413,-240.1737,0.00012596,2]
[404074475,1769788232423,-600.48150974,0.00012596,2]
[404074476,1769788232437,-264.99822087,0.00012596,2]
[404074477,1769788232447,-20567.56070132,0.00012596,2]
[404074478,1769788232456,-483.10584496,0.00012596,2]
[404074479,1769788232466,-4380.54464539,0.00012596,2]
[404074480,1769788232476,-357.83561603,0.00012686,2]
[404074481,1769788232486,-344.47242463,0.00012695,2]
[404074482,1769788232495,-500.0,0.00012695,2]
[404074483,1769788232506,-457.87546976,0.00012695,2]
[404074484,1769788232517,-500.0,0.00012695,2]
[404074485,1769788232527,-465.44065419,0.00012695,2]
[404074486,1769788232537,-500.0,0.00012695,2]
[404074487,1769788232547,-500.0,0.00012695,2]
[404074488,1769788232558,-500.0,0.00012695,2]
[404074489,1769788232568,-500.0,0.00012695,2]
[404074490,1769788232579,-500.0,0.00012695,2]
[404074491,1769788232589,-285.18743139,0.00012695,2]
[404074492,1769788232599,-999.99,0.00012695,2]
[404074493,1769788232609,-310.7,0.00012695,2]
[404074494,1769788232622,-9999.99,0.00012695,2]
[404074495,1769788232635,-299.99,0.00012695,2]
[404074496,1769788232645,-514.51,0.00012695,2]
[404074497,1769788232654,-3826.81,0.00012695,2]
[404074498,1769788232664,-9999.99,0.00012695,2]
[404074499,1769788232673,-2101.52,0.00012695,2]
[404074500,1769788232683,-9999.99,0.00012695,2]
[404074501,1769788232692,-6247.3,0.00012695,2]
[404074502,1769788232702,-10339.4,0.00012695,2]
[404074503,1769788232712,-297.97,0.00012695,2]
[404074504,1769788232721,-9999.99,0.00012695,2]
[404074505,1769788232730,-9154.49,0.00012695,2]
[404074506,1769788232740,-20008.07885246,0.00012696,2]
[404074507,1769788232752,-8059.31193312,0.00012696,2]
[404074508,1769788232764,-37002.50128248,0.00012696,2]
[404074509,1769788232776,-52828.69923727,0.00012696,2]
[404074510,1769788232787,-1254.41808677,0.00012696,2]
[404074511,1769788232807,-1848.46471605,0.00012696,2]
[404074512,1769788232820,-1300.0,0.00012696,2]
[404074514,1769788238271,-1647.84256325,0.00012696,2]
[404074543,1769788240224,-2276050.6833286,0.00012696,2]
[404074544,1769788240234,-237.2007,0.00012696,2]
[404074545,1769788240245,-500.0,0.00012696,2]
[404074546,1769788240255,-187.0,0.00012718,2]
[404074547,1769788240264,-193.0,0.00012744,2]
[404074548,1769788240274,-486.0,0.00012769,2]
[404074549,1769788240284,-3660.02,0.00012796,2]
[404074550,1769788240294,-500.0,0.00012796,2]
[404074551,1769788240304,-200.0,0.00012796,2]
[404074552,1769788240313,-500.0,0.00012796,2]
[404074553,1769788240323,-500.0,0.00012796,2]
[404074554,1769788240332,-206.57786945,0.00012796,2]
[404074555,1769788240343,-151.0,0.00012796,2]
[404074556,1769788240352,-151.0,0.00012796,2]
[404074557,1769788240362,-151.0,0.00012796,2]
[404074558,1769788240372,-151.0,0.00012796,2]
[404074559,1769788240382,-151.0,0.00012796,2]
[404074560,1769788240392,-151.0,0.00012796,2]
[404074561,1769788240401,-200.0,0.00012796,2]
[404074562,1769788240411,-151.0,0.00012796,2]
[404074563,1769788240421,-151.0,0.00012796,2]
[404074564,1769788240431,-151.0,0.00012796,2]
[404074565,1769788240441,-151.0,0.00012796,2]
[404074566,1769788240450,-151.0,0.00012796,2]
[404074567,1769788240460,-500.0,0.00012796,2]
[404074568,1769788240470,-500.0,0.00012796,2]
[404074569,1769788240479,-500.0,0.00012796,2]
[404074570,1769788240488,-476.86527458,0.00012796,2]
[404074571,1769788240498,-1000.0,0.00012796,2]
[404074572,1769788240508,-308.0088,0.00012796,2]
[404074573,1769788240519,-1000.0,0.00012796,2]
[404074574,1769788240530,-1000.0,0.00012796,2]
[404074575,1769788240540,-978.3186082,0.00012796,2]
[404074576,1769788240550,-150.99,0.00012797,2]
[404074577,1769788240560,-150.99,0.00012797,2]
[404074578,1769788240574,-4314.48,0.00012797,2]
[404074579,1769788240585,-464.49,0.00012797,2]
[404074580,1769788240595,-3698.07,0.00012797,2]
[404074581,1769788240606,-681.72,0.00012797,2]
[404074582,1769788240616,-19999.99,0.00012797,2]
[404074583,1769788240628,-221.97,0.000128,2]
[404074584,1769788240638,-166.66,0.00012875,2]
[404074585,1769788240648,-484.0,0.0001288,2]
[404074586,1769788240658,-891.65825359,0.00012899,2]
[404074587,1769788240668,-1687.0,0.00012905,2]
[404074588,1769788240678,-209.41,0.00012918,2]
[404074589,1769788240688,-1561.0,0.00012931,2]
[404074590,1769788240699,-1126.0,0.00012957,2]
[404074591,1769788240709,-500.0,0.0001297,2]
[404074592,1769788240719,-700.0,0.00012983,2]
[404074593,1769788240728,-1498.0,0.00013008,2]
[404074594,1769788240739,-1261.0,0.00013034,2]
[404074595,1769788240751,-1569.0,0.0001306,2]
[404074596,1769788240762,-1379.0,0.00013085,2]
[404074597,1769788240771,-183.75,0.00013093,2]
[404074598,1769788240782,-579.0,0.00013111,2]
[404074599,1769788240792,-166.66,0.0001313,2]
[404074600,1769788240802,-797.0,0.00013137,2]
[404074601,1769788240812,-479.1,0.0001315,2]
[404074602,1769788240823,-1994.0,0.00013162,2]
[404074603,1769788240833,-20567.56070127,0.00013185,2]
[404074604,1769788240843,-1246.0,0.00013188,2]
[404074605,1769788240853,-163.75117701,0.0001319,2]
[404074606,1769788240863,-1653.0,0.00013214,2]
[404074608,1769788240873,-164.0,0.0001324,2]
[404074609,1769788240883,-500.0,0.00013244,2]
[404074610,1769788240892,-626.0,0.00013265,2]
[404074611,1769788240902,-1485.0,0.00013291,2]
[404074612,1769788240912,-607.0,0.00013317,2]
[404074613,1769788240921,-211.36238373,0.00013323,2]
[404074614,1769788240931,-571.0,0.00013342,2]
[404074615,1769788240941,-500.0,0.00013344,2]
[404074616,1769788240951,-200.0,0.00013344,2]
[404074617,1769788240966,-200.0,0.00013344,2]
[404074618,1769788240975,-4380.54464535,0.00013354,2]
[404074619,1769788240985,-1665.0,0.00013368,2]
[404074620,1769788240995,-166.66,0.00013385,2]
[404074621,1769788241005,-695.0,0.00013394,2]
[404074622,1769788241015,-1085.0,0.0001342,2]
[404074623,1769788241024,-1467.0,0.00013445,2]
[404074624,1769788241034,-434.79,0.00013506,2]
[404074625,1769788241043,-500.0,0.00013518,2]
[404074626,1769788241053,-1023.0,0.00013557,2]
[404074627,1769788241063,-587.0,0.00013557,2]
[404074628,1769788241073,-420.0,0.00013558,2]
[404074629,1769788241083,-2351.0,0.00013591,2]
[404074630,1769788241093,-300.0,0.00013595,2]
[404074632,1769788241103,-255.0,0.00013691,2]
[404074634,1769788241114,-500.0,0.00013698,2]
[404074636,1769788241126,-500.0,0.00013698,2]
[404074637,1769788241136,-500.0,0.00013698,2]
[404074638,1769788241146,-500.0,0.00013698,2]
[404074639,1769788241157,-500.0,0.00013698,2]
[404074640,1769788241166,-500.0,0.00013698,2]
[404074641,1769788241176,-500.0,0.00013698,2]
[404074642,1769788241186,-500.0,0.00013698,2]
[404074643,1769788241196,-500.0,0.00013698,2]
[404074644,1769788241206,-500.0,0.00013698,2]
[404074645,1769788241217,-500.0,0.00013698,2]
[404074646,1769788241228,-500.0,0.00013698,2]
[404074647,1769788241238,-500.0,0.00013698,2]
[404074648,1769788241248,-500.0,0.00013698,2]
[404074649,1769788241258,-500.0,0.00013698,2]
[404074650,1769788241268,-500.0,0.00013698,2]
[404074651,1769788241278,-500.0,0.00013698,2]
[404074652,1769788241289,-500.0,0.00013698,2]
[404074653,1769788241299,-500.0,0.00013698,2]
[404074654,1769788241314,-500.0,0.00013698,2]
[404074655,1769788241343,-500.0,0.00013698,2]
[404074656,1769788241358,-500.0,0.00013698,2]
[404074657,1769788241383,-500.0,0.00013698,2]
[404074658,1769788241407,-500.0,0.00013698,2]
[404074659,1769788241420,-500.0,0.00013698,2]
[404074660,1769788241443,-271.3035718,0.00013698,2]
[404074661,1769788241467,-500.0,0.00013698,2]
[404074662,1769788241483,-500.0,0.00013698,2]
[404074663,1769788241496,-500.0,0.00013698,2]
[404074664,1769788241511,-500.0,0.00013698,2]
[404074665,1769788241526,-500.0,0.00013698,2]
[404074666,1769788241538,-500.0,0.00013698,2]
[404074667,1769788241551,-500.0,0.00013698,2]
[404074668,1769788241562,-500.0,0.00013698,2]
[404074669,1769788241573,-385.18354163,0.00013698,2]
[404074670,1769788241583,-370.45918944,0.00013698,2]
[404074671,1769788241594,-502.11575154,0.00013698,2]
[404074672,1769788241604,-500.0,0.00013698,2]
[404074673,1769788241615,-326.23818299,0.00013698,2]
[404074674,1769788241627,-500.0,0.00013698,2]
[404074675,1769788241637,-500.0,0.00013698,2]
[404074676,1769788241648,-500.0,0.00013698,2]
[404074677,1769788241658,-500.0,0.00013698,2]
[404074678,1769788241669,-500.0,0.00013698,2]
[404074679,1769788241680,-500.0,0.00013698,2]
[404074680,1769788241692,-500.0,0.00013698,2]
[404074681,1769788241701,-294.00680809,0.00013698,2]
[404074682,1769788241712,-502.05200047,0.00013698,2]
[404074683,1769788241722,-500.0,0.00013698,2]
[404074684,1769788241731,-500.0,0.00013698,2]
[404074685,1769788241741,-500.0,0.00013698,2]
[404074686,1769788241751,-339.71365586,0.00013698,2]
[404074687,1769788241760,-500.0,0.00013698,2]
[404074688,1769788241771,-500.0,0.00013698,2]
[404074689,1769788241781,-500.0,0.00013698,2]
[404074690,1769788241791,-500.0,0.00013698,2]
[404074691,1769788241802,-500.0,0.00013698,2]
[404074692,1769788241812,-500.0,0.00013698,2]
[404074693,1769788241823,-500.0,0.00013698,2]
[404074694,1769788241835,-500.0,0.00013698,2]
[404074695,1769788241847,-604.58205548,0.00013698,2]
[404074696,1769788241856,-500.0,0.00013698,2]
[404074697,1769788241870,-500.0,0.00013698,2]
[404074698,1769788241881,-500.0,0.00013698,2]
[404074699,1769788241892,-500.0,0.00013698,2]
[404074700,1769788241902,-500.0,0.00013698,2]
[404074701,1769788241911,-500.0,0.00013698,2]
[404074702,1769788241920,-500.0,0.00013698,2]
[404074703,1769788241930,-500.0,0.00013698,2]
[404074704,1769788241940,-622.5575592,0.00013698,2]
[404074705,1769788241949,-500.0,0.00013698,2]
[404074706,1769788241959,-500.0,0.00013698,2]
[404074707,1769788241969,-500.0,0.00013698,2]
[404074708,1769788241978,-500.0,0.00013698,2]
[404074709,1769788241988,-500.0,0.00013698,2]
[404074710,1769788241997,-500.0,0.00013698,2]
[404074711,1769788242007,-500.0,0.00013698,2]
[404074712,1769788242016,-208.77047208,0.00013698,2]
[404074713,1769788242139,-500.0,0.00013698,2]
[404074714,1769788242150,-500.0,0.00013698,2]
[404074715,1769788242159,-500.0,0.00013698,2]
[404074716,1769788242169,-500.0,0.00013698,2]
[404074717,1769788242178,-500.0,0.00013698,2]
[404074718,1769788242188,-500.0,0.00013698,2]
[404074719,1769788242198,-500.0,0.00013698,2]
[404074720,1769788242207,-500.0,0.00013698,2]
[404074721,1769788242220,-500.0,0.00013698,2]
[404074722,1769788242229,-519.46286686,0.00013698,2]
[404074723,1769788242238,-500.0,0.00013698,2]
[404074724,1769788242248,-500.0,0.00013698,2]
[404074725,1769788242257,-500.0,0.00013698,2]
[404074726,1769788242266,-500.0,0.00013698,2]
[404074727,1769788242275,-500.0,0.00013698,2]
[404074728,1769788242284,-500.0,0.00013698,2]
[404074729,1769788242293,-500.0,0.00013698,2]
[404074730,1769788242303,-500.0,0.00013698,2]
[404074731,1769788242312,-500.0,0.00013698,2]
[404074732,1769788242321,-500.0,0.00013698,2]